fUSD/lending_fUSD_20251201
["ID","MTS","AMOUNT","RATE_DAILY","PERIOD"]
[395256935,1764573041319,-559.01212268,0.00013698,2]
[395256936,1764573041329,-300.0,0.00013698,2]
[395256937,1764573041338,-300.0,0.00013698,2]
[395256938,1764573041347,-300.0,0.00013698,2]
[395256939,1764573041355,-349.89110636,0.00013698,2]
[395256940,1764573041364,-644.6,0.00013698,2]
[395256941,1764573041373,-644.6,0.00013698,2]
[395256942,1764573041383,-644.6,0.00013698,2]
[395256943,1764573041392,-644.6,0.00013698,2]
[395256944,1764573041402,-500.0,0.00013698,2]
[395256945,1764573041411,-500.0,0.00013698,2]
[395256946,1764573041420,-500.0,0.00013698,2]
[395256947,1764573041430,-500.0,0.00013698,2]
[395256948,1764573041439,-500.0,0.00013698,2]
[395256949,1764573041449,-500.0,0.00013698,2]
[395256950,1764573041459,-1639.03,0.00013698,2]
[395256951,1764573041468,-1639.03,0.00013698,2]
[395256952,1764573041477,-1639.03,0.00013698,2]
[395256953,1764573041487,-1639.03,0.00013698,2]
[395256954,1764573041496,-1639.03,0.00013698,2]
[395256955,1764573041505,-1639.03,0.00013698,2]
[395256956,1764573041514,-1639.03,0.00013698,2]
[395256957,1764573041526,-1639.03,0.00013698,2]
[395256958,1764573041536,-1639.03,0.00013698,2]
[395256959,1764573041546,-1639.03,0.00013698,2]
[395256960,1764573041556,-1639.03,0.00013698,2]
[395256961,1764573041566,-1639.03,0.00013698,2]
[395256962,1764573041575,-1639.03,0.00013698,2]
[395256963,1764573041585,-1639.03,0.00013698,2]
[395256964,1764573041594,-1639.03,0.00013698,2]
[395256965,1764573041606,-1639.03,0.00013698,2]
[395256966,1764573041615,-1639.03,0.00013698,2]
[395256967,1764573041625,-1639.03,0.00013698,2]
[395256968,1764573041634,-1639.03,0.00013698,2]
[395256969,1764573041644,-1639.03,0.00013698,2]
[395256970,1764573041653,-1639.03,0.00013698,2]
[395256971,1764573041663,-1639.03,0.00013698,2]
[395256972,1764573041672,-1639.03,0.00013698,2]
[395256973,1764573041682,-1639.22377214,0.00013698,2]
[395256974,1764573041691,-200.0,0.00013699,2]
[395256975,1764573041700,-612.07,0.00013699,2]
[395256976,1764573041710,-600.0,0.00013699,2]
[395256977,1764573041719,-500.0,0.00013699,2]
[395256978,1764573041729,-150.0,0.00013699,2]
[395256979,1764573041738,-12894.07850265,0.00013715,2]
[395256980,1764573041748,-500.0,0.0001372,2]
[395256981,1764573041757,-500.0,0.0001372,2]
[395256982,1764573041766,-500.0,0.0001372,2]
[395256983,1764573041775,-275.45,0.00013742,2]
[395256984,1764573041784,-255.0,0.0001376,2]
[395256985,1764573041793,-1500.0,0.00013817,2]
[395256986,1764573041802,-336.0,0.00013826,2]
[395256987,1764573041811,-420.0,0.00013826,2]
[395256988,1764573041821,-420.0,0.00013826,2]
[395256989,1764573041830,-500.0,0.00013832,2]
[395256990,1764573041839,-4394.0,0.00013832,2]
[395256991,1764573041848,-500.0,0.00013832,2]
[395256992,1764573041857,-500.0,0.00013832,2]
[395256993,1764573041867,-500.0,0.00013832,2]
[395256994,1764573041876,-417.0,0.00013832,2]
[395256995,1764573041885,-500.0,0.00013836,2]
[395256996,1764573041894,-250.0,0.0001384,2]
[395256997,1764573041903,-1841.0142248,0.00013844,2]
[395256998,1764573041912,-220.07,0.00013844,2]
[395256999,1764573041922,-1680.0,0.00013861,2]
[395257000,1764573041931,-1575.36,0.00013948,2]
[395257001,1764573041940,-200.0,0.00013948,2]
[395257002,1764573041949,-500.0,0.00013948,2]
[395257003,1764573041959,-200.0,0.00013948,2]
[395257004,1764573041968,-999.0,0.00013964,3]
[395257005,1764573041977,-1500.0,0.00013968,2]
[395257006,1764573041986,-695.52666433,0.00013968,2]
[395257007,1764573041995,-1500.0,0.00013968,2]
[395257008,1764573042004,-1500.0,0.00013968,2]
[395257009,1764573042013,-1502.96420978,0.00013968,2]
[395257010,1764573042023,-500.0,0.00013969,2]
[395257011,1764573042032,-4394.0,0.00013969,2]
[395257012,1764573042041,-500.0,0.00013969,2]
[395257013,1764573042050,-500.0,0.00013969,2]
[395257014,1764573042059,-500.0,0.00013969,2]
[395257015,1764573042068,-417.0,0.00013969,2]
[395257016,1764573042077,-550.88958633,0.00013973,2]
[395257017,1764573042087,-2162.66,0.00013989,2]
[395257018,1764573042096,-500.0,0.00013999,2]
[395257019,1764573042105,-2162.66,0.00013999,2]
[395257020,1764573042114,-4512.22,0.00013999,2]
[395257021,1764573042123,-500.0,0.00013999,2]
[395257022,1764573042133,-500.0,0.00013999,2]
[395257023,1764573042142,-269.91867043,0.00013999,2]
[395257024,1764573042151,-519.80565924,0.00013999,2]
[395257025,1764573042160,-500.0,0.00013999,2]
[395257026,1764573042169,-500.0,0.00013999,2]
[395257027,1764573042178,-6208.37,0.00014017,2]
[395257028,1764573042187,-500.0,0.0001402,2]
[395257029,1764573042197,-4512.22,0.0001402,2]
[395257030,1764573042206,-500.0,0.0001402,2]
[395257031,1764573042216,-500.0,0.0001402,2]
[395257032,1764573042225,-500.0,0.00014106,2]
[395257033,1764573042235,-4394.0,0.00014106,2]
[395257034,1764573042245,-500.0,0.00014106,2]
[395257035,1764573042254,-500.0,0.00014106,2]
[395257036,1764573042264,-500.0,0.00014106,2]
[395257037,1764573042274,-417.0,0.00014106,2]
[395257038,1764573042284,-38850.81143401,0.00014115,2]
[395257039,1764573042293,-12614.97504208,0.00014149,2]
[395257041,1764573042303,-1575.36,0.00014222,2]
[395257042,1764573042312,-500.0,0.00014243,2]
[395257043,1764573042321,-4394.0,0.00014243,2]
[395257044,1764573042331,-500.0,0.00014243,2]
[395257045,1764573042345,-500.0,0.00014243,2]
[395257046,1764573042356,-500.0,0.00014243,2]
[395257048,1764573042365,-417.0,0.00014243,2]
[395257049,1764573042375,-212.66437805,0.00014243,2]
[395257050,1764573042384,-150.0,0.00014243,2]
[395257051,1764573042394,-150.0,0.00014243,2]
[395257053,1764573042404,-150.0,0.00014243,2]
[395257055,1764573042413,-150.0,0.00014243,2]
[395257057,1764573042423,-600.0,0.00014247,2]
[395257059,1764573042432,-200.0,0.00014359,2]
[395257061,1764573042442,-219.4928398,0.0001438,2]
[395257063,1764573042451,-4394.0,0.0001438,2]
[395257065,1764573042461,-500.0,0.0001438,2]
[395257066,1764573042470,-500.0,0.0001438,2]
[395257068,1764573042480,-500.0,0.0001438,2]
[395257069,1764573042488,-417.0,0.0001438,2]
[395257070,1764573042498,-150.0,0.0001438,2]
[395257071,1764573042507,-150.0,0.0001438,2]
[395257072,1764573042517,-150.0,0.0001438,2]
[395257073,1764573042530,-150.0,0.0001438,2]
[395257074,1764573042539,-1841.0142248,0.00014455,2]
[395257075,1764573042548,-1575.36,0.00014496,2]
[395257076,1764573042557,-200.0,0.00014496,2]
[395257077,1764573042570,-500.0,0.00014496,2]
[395257078,1764573042579,-200.0,0.00014496,2]
[395257079,1764573042588,-2000.0,0.00014516,2]
[395257080,1764573042598,-1005.67913008,0.00014516,2]
[395257081,1764573042608,-2000.0,0.00014516,2]
[395257082,1764573042617,-4394.0,0.00014517,2]
[395257083,1764573042626,-500.0,0.00014517,2]
[395257084,1764573042636,-500.0,0.00014517,2]
[395257085,1764573042646,-200.0,0.00014517,2]
[395257086,1764573042656,-417.0,0.00014517,2]
[395257087,1764573042665,-207.38496735,0.00014517,2]
[395257088,1764573042674,-150.0,0.00014517,2]
[395257089,1764573042683,-215.9215938,0.00014517,2]
[395257090,1764573042692,-150.0,0.00014517,2]
[395257091,1764573042702,-151.0,0.00014521,2]
[395257092,1764573042711,-38850.81143401,0.00014579,2]
[395257093,1764573042720,-644.6,0.00014599,2]
[395257094,1764573042729,-12614.97504208,0.00014607,2]
[395257095,1764573042738,-220.07,0.00014613,2]
[395257096,1764573042747,-4394.0,0.00014654,2]
[395257097,1764573042757,-500.0,0.00014654,2]
[395257098,1764573042766,-203.73471508,0.00014654,2]
[395257099,1764573042775,-417.0,0.00014654,2]
[395257100,1764573042784,-150.0,0.00014654,2]
[395257101,1764573042794,-212.94335419,0.00014654,2]
[395257102,1764573042804,-1575.36,0.0001477,2]
[395257103,1764573042813,-173.83022775,0.0001478,2]
[395257104,1764573042822,-500.0,0.00014787,2]
[395257105,1764573042832,-2162.66,0.00014787,2]
[395257106,1764573042841,-4512.22,0.00014787,2]
[395257107,1764573042850,-500.0,0.00014787,2]
[395257108,1764573042859,-4394.0,0.00014791,2]
[395257109,1764573042868,-500.0,0.00014791,2]
[395257110,1764573042877,-417.0,0.00014791,2]
[395257111,1764573042886,-180.65552809,0.00014791,2]
[395257112,1764573042895,-600.0,0.00014795,2]
[395257113,1764573042904,-4394.0,0.00014928,2]
[395257114,1764573042913,-500.0,0.00014928,2]
[395257115,1764573042922,-417.0,0.00014928,2]
[395257116,1764573042931,-433.0,0.00014963,2]
[395257117,1764573042940,-500.0,0.00014999,2]
[395257118,1764573042948,-571.55421177,0.00014999,2]
[395257119,1764573042958,-2162.66,0.00014999,2]
[395257120,1764573042966,-2162.66,0.00014999,2]
[395257121,1764573042975,-4512.22,0.00014999,2]
[395257122,1764573042984,-4512.22,0.00014999,2]
[395257123,1764573042992,-500.0,0.00014999,2]
[395257124,1764573043002,-500.0,0.00014999,2]
[395257125,1764573043011,-500.0,0.00014999,2]
[395257126,1764573043020,-386.00822049,0.00014999,2]
[395257127,1764573043028,-163.01493173,0.00014999,2]
[395257128,1764573043038,-38850.81143401,0.00015043,2]
[395257129,1764573043047,-1575.36,0.00015044,2]
[395257130,1764573043056,-200.0,0.00015044,2]
[395257131,1764573043065,-500.0,0.00015044,2]
[395257132,1764573043074,-200.0,0.00015044,2]
[395257133,1764573043083,-1500.0,0.00015064,2]
[395257134,1764573043092,-2500.0,0.00015064,2]
[395257135,1764573043101,-4394.0,0.00015065,2]
[395257136,1764573043110,-500.0,0.00015065,2]
[395257137,1764573043119,-417.0,0.00015065,2]
[395257138,1764573043128,-12614.97504208,0.00015066,2]
[395257139,1764573043137,-1841.0142248,0.00015066,2]
[395257140,1764573043146,-322.63,0.00015068,2]
[395257141,1764573043155,-151.0,0.00015069,2]
[395257142,1764573043164,-587.0,0.00015168,2]
[395257143,1764573043173,-587.0,0.00015168,2]
[395257144,1764573043182,-4394.0,0.00015202,2]
[395257145,1764573043191,-500.0,0.00015202,2]
[395257146,1764573043200,-417.0,0.00015202,2]
[395257147,1764573043209,-2351.0,0.00015247,2]
[395257148,1764573043219,-150.0,0.00015288,2]
[395257149,1764573043229,-150.00000001,0.00015288,2]
[395257150,1764573043239,-150.0,0.00015288,2]
[395257151,1764573043248,-163.70980013,0.00015288,2]
[395257152,1764573043257,-150.0,0.00015288,2]
[395257153,1764573043267,-150.0,0.00015288,2]
[395257154,1764573043277,-150.0,0.00015288,2]
[395257155,1764573043286,-150.0,0.00015288,2]
[395257156,1764573043295,-228.29835367,0.00015288,2]
[395257157,1764573043304,-150.0,0.00015288,2]
[395257158,1764573043316,-150.0,0.00015288,2]
[395257159,1764573043325,-150.0,0.00015288,2]
[395257160,1764573043336,-150.0,0.00015288,2]
[395257161,1764573043345,-150.0,0.00015288,2]
[395257162,1764573043355,-190.82998658,0.00015288,2]
[395257163,1764573043364,-150.0,0.00015288,2]
[395257164,1764573043373,-163.70980013,0.00015305,2]
[395257165,1764573043383,-228.29835367,0.00015305,2]
[395257166,1764573043393,-150.0,0.0001531,2]
[395257167,1764573043403,-150.0,0.00015313,2]
[395257168,1764573043412,-150.0,0.00015316,2]
[395257169,1764573043422,-150.0,0.00015317,2]
[395257170,1764573043431,-1575.36,0.00015318,2]
[395257171,1764573043441,-163.70980013,0.00015322,2]
[395257172,1764573043450,-228.29835367,0.00015322,2]
[395257173,1764573043459,-150.0,0.00015332,2]
[395257174,1764573043469,-150.0,0.00015338,2]
[395257175,1764573043478,-4394.0,0.00015339,2]
[395257176,1764573043487,-316.0,0.00015339,2]
[395257177,1764573043497,-417.0,0.00015339,2]
[395257178,1764573043506,-163.70980013,0.00015339,2]
[395257179,1764573043516,-228.29835367,0.00015339,2]
[395257180,1764573043531,-150.0,0.00015342,2]
[395257181,1764573043541,-600.0,0.00015342,2]
[395257182,1764573043550,-150.0,0.00015343,2]
[395257183,1764573043560,-150.0,0.00015347,2]
[395257184,1764573043570,-150.0,0.00015354,2]
[395257185,1764573043580,-163.70980013,0.00015356,2]
[395257186,1764573043590,-228.29835367,0.00015356,2]
[395257187,1764573043601,-150.0,0.00015362,2]
[395257188,1764573043611,-150.0,0.00015363,2]
[395257189,1764573043620,-150.0,0.00015371,2]
[395257190,1764573043629,-163.70980013,0.00015373,2]
[395257191,1764573043639,-228.29835367,0.00015373,2]
[395257192,1764573043648,-150.0,0.00015376,2]
[395257193,1764573043657,-150.0,0.00015377,2]
[395257194,1764573043667,-175.6,0.0001538,2]
[395257195,1764573043676,-220.07,0.00015382,2]
[395257196,1764573043685,-150.0,0.00015388,2]
[395257197,1764573043694,-163.70980013,0.00015391,2]
[395257198,1764573043703,-228.29835367,0.00015391,2]
[395257199,1764573043712,-150.0,0.00015397,2]
[395257200,1764573043722,-150.0,0.00015398,2]
[395257201,1764573043732,-150.0,0.00015399,2]
[395257202,1764573043741,-150.0,0.00015401,2]
[395257203,1764573043750,-150.0,0.00015407,2]
[395257204,1764573043759,-163.70980013,0.00015408,2]
[395257205,1764573043769,-228.29835367,0.00015408,2]
[395257206,1764573043778,-150.0,0.00015413,2]
[395257207,1764573043787,-150.0,0.0001542,2]
[395257208,1764573043796,-163.70980013,0.00015425,2]
[395257209,1764573043805,-228.29835367,0.00015425,2]
[395257210,1764573043814,-150.0,0.00015427,2]
[395257211,1764573043823,-150.0,0.00015435,2]
[395257212,1764573043833,-150.0,0.00015437,2]
[395257213,1764573043842,-150.0,0.00015438,2]
[395257214,1764573043853,-163.70980013,0.00015442,2]
[395257215,1764573043863,-150.0,0.00015442,2]
[395257216,1764573043873,-228.29835367,0.00015442,2]
[395257217,1764573043883,-150.0,0.00015452,2]
[395257218,1764573043893,-150.0,0.00015455,2]
[395257219,1764573043903,-150.0,0.00015458,2]
[395257220,1764573043911,-163.70980013,0.00015459,2]
[395257221,1764573043921,-228.29835367,0.00015459,2]
[395257222,1764573043930,-150.0,0.00015463,2]
[395257223,1764573043940,-150.0,0.00015464,2]
[395257224,1764573043949,-150.0,0.00015466,2]
[395257225,1764573043958,-4394.0,0.00015476,2]
[395257226,1764573043968,-417.0,0.00015476,2]
[395257227,1764573043977,-163.70980013,0.00015476,2]
[395257228,1764573043986,-228.29835367,0.00015476,2]
[395257229,1764573043995,-150.0,0.00015483,2]
[395257230,1764573044004,-500.0,0.00015486,2]
[395257231,1764573044014,-150.0,0.00015486,2]
[395257232,1764573044023,-150.0,0.00015488,2]
[395257233,1764573044032,-163.70980013,0.00015494,2]
[395257234,1764573044042,-228.29835367,0.00015494,2]
[395257235,1764573044051,-150.0,0.00015496,2]
[395257236,1764573044060,-150.0,0.00015507,2]
[395257237,1764573044069,-38850.81143401,0.00015507,2]
[395257238,1764573044080,-150.0,0.00015508,2]
[395257239,1764573044089,-150.0,0.00015509,2]
[395257240,1764573044098,-150.0,0.0001551,2]
[395257241,1764573044107,-163.70980013,0.00015511,2]
[395257242,1764573044117,-228.29835367,0.00015511,2]
[395257243,1764573044126,-150.0,0.00015512,2]
[395257244,1764573044135,-150.0,0.00015514,2]
[395257245,1764573044145,-12614.97504208,0.00015524,2]
[395257246,1764573044155,-150.0,0.00015526,2]
[395257247,1764573044165,-163.70980013,0.00015528,2]
[395257248,1764573044182,-228.29835367,0.00015528,2]
[395257249,1764573044197,-150.0,0.0001553,2]
[395257250,1764573044208,-150.0,0.0001553,2]
[395257251,1764573044220,-150.0,0.00015537,2]
[395257252,1764573044230,-150.0,0.00015538,2]
[395257253,1764573044239,-163.70980013,0.00015545,2]
[395257254,1764573044248,-228.29835367,0.00015545,2]
[395257255,1764573044257,-150.0,0.00015552,2]
[395257256,1764573044266,-150.0,0.00015556,2]
[395257257,1764573044276,-150.0,0.00015562,2]
[395257258,1764573044285,-163.70980013,0.00015562,2]
[395257259,1764573044295,-228.29835367,0.00015562,2]
[395257260,1764573044304,-150.0,0.00015562,2]
[395257261,1764573044314,-150.0,0.00015566,2]
[395257262,1764573044323,-150.0,0.00015574,2]
[395257263,1764573044334,-163.70980013,0.00015579,2]
[395257264,1764573044344,-228.29835367,0.00015579,2]
[395257265,1764573044353,-150.0,0.00015583,2]
[395257266,1764573044362,-150.0,0.00015586,2]
[395257267,1764573044371,-150.0,0.00015587,2]
[395257268,1764573044381,-207.4,0.00015591,2]
[395257269,1764573044391,-1575.36,0.00015592,2]
[395257270,1764573044400,-200.0,0.00015592,2]
[395257271,1764573044410,-500.0,0.00015592,2]
[395257272,1764573044419,-200.0,0.00015592,2]
[395257273,1764573044429,-150.0,0.00015594,2]
[395257274,1764573044438,-163.70980013,0.00015597,2]
[395257275,1764573044447,-150.0,0.00015597,2]
[395257276,1764573044456,-228.29835367,0.00015597,2]
[395257277,1764573044466,-3000.0,0.00015612,2]
[395257278,1764573044475,-150.0,0.00015612,2]
[395257279,1764573044485,-4394.0,0.00015613,2]
[395257280,1764573044494,-417.0,0.00015613,2]
[395257282,1764573044503,-163.70980013,0.00015614,2]
[395257283,1764573044513,-228.29835367,0.00015614,2]
[395257285,1764573044523,-150.0,0.00015615,2]
[395257286,1764573044536,-150.0,0.00015616,2]
[395257287,1764573044545,-151.0,0.00015617,2]
[395257288,1764573044555,-150.0,0.00015619,2]
[395257289,1764573044564,-150.0,0.00015622,2]
[395257292,1764573044576,-150.0,0.00015627,2]
[395257294,1764573044585,-150.0,0.00015627,2]
[395257296,1764573044595,-163.70980013,0.00015631,2]
[395257297,1764573044605,-228.29835367,0.00015631,2]
[395257298,1764573044615,-2162.66,0.00015632,2]
[395257299,1764573044624,-150.0,0.00015637,2]
[395257300,1764573044633,-150.0,0.00015641,2]
[395257301,1764573044642,-500.0,0.00015643,2]
[395257302,1764573044651,-604.47,0.00015643,2]
[395257303,1764573044660,-500.0,0.00015643,2]
[395257304,1764573044670,-500.0,0.00015643,2]
[395257305,1764573044680,-500.0,0.00015643,2]
[395257306,1764573044689,-500.0,0.00015643,2]
[395257307,1764573044699,-500.0,0.00015643,2]
[395257308,1764573044708,-500.0,0.00015643,2]
[395257309,1764573044718,-500.0,0.00015643,2]
[395257310,1764573044727,-500.0,0.00015643,2]
[395257311,1764573044737,-500.0,0.00015643,2]
[395257312,1764573044746,-500.0,0.00015643,2]
[395257313,1764573044755,-500.0,0.00015643,2]
[395257314,1764573044764,-500.0,0.00015643,2]
[395257315,1764573044774,-500.0,0.00015643,2]
[395257316,1764573044783,-500.0,0.00015643,2]
[395257317,1764573044792,-500.0,0.00015643,2]
[395257318,1764573044801,-500.0,0.00015643,2]
[395257319,1764573044811,-4512.22,0.00015644,2]
[395257320,1764573044820,-150.0,0.00015645,2]
[395257321,1764573044831,-163.70980013,0.00015648,2]
[395257322,1764573044840,-228.29835367,0.00015648,2]
[395257323,1764573044849,-150.0,0.0001565,2]
[395257324,1764573044858,-150.0,0.00015657,2]
[395257325,1764573044867,-150.0,0.00015662,2]
[395257326,1764573044877,-150.0,0.00015663,2]
[395257327,1764573044886,-163.70980013,0.00015665,2]
[395257328,1764573044895,-228.29835367,0.00015665,2]
[395257329,1764573044904,-150.0,0.00015671,2]
[395257330,1764573044913,-150.0,0.00015675,2]
[395257331,1764573044923,-1841.0142248,0.00015677,2]
[395257332,1764573044932,-150.0,0.00015678,2]
[395257333,1764573044942,-163.70980013,0.00015682,2]
[395257334,1764573044951,-228.29835367,0.00015682,2]
[395257335,1764573044960,-150.0,0.00015685,2]
[395257336,1764573044969,-150.0,0.00015687,2]
[395257337,1764573044979,-163.70980013,0.00015699,2]
[395257338,1764573044988,-228.29835367,0.00015699,2]
[395257339,1764573044997,-150.0,0.00015705,2]
[395257340,1764573045006,-150.0,0.00015705,2]
[395257341,1764573045015,-150.0,0.00015707,2]
[395257342,1764573045025,-150.0,0.00015712,2]
[395257343,1764573045033,-150.0,0.00015712,2]
[395257344,1764573045042,-150.0,0.00015712,2]
[395257345,1764573045051,-163.70980013,0.00015717,2]
[395257346,1764573045061,-228.29835367,0.00015717,2]
[395257347,1764573045070,-150.0,0.00015726,2]
[395257348,1764573045079,-150.0,0.00015729,2]
[395257349,1764573045088,-150.0,0.00015731,2]
[395257350,1764573045098,-150.0,0.00015733,2]
[395257351,1764573045107,-163.70980013,0.00015734,2]
[395257352,1764573045116,-228.29835367,0.00015734,2]
[395257353,1764573045125,-150.0,0.00015735,2]
[395257354,1764573045135,-150.0,0.00015737,2]
[395257355,1764573045144,-150.0,0.00015741,2]
[395257356,1764573045154,-4394.0,0.0001575,2]
[395257357,1764573045164,-417.0,0.0001575,2]
[395257358,1764573045402,-163.70980013,0.00015751,2]
[395257359,1764573045412,-150.0,0.00015751,2]
[395257360,1764573045422,-228.29835367,0.00015751,2]
[395257361,1764573045432,-150.0,0.00015761,2]
[395257362,1764573045441,-150.0,0.00015762,2]
[395257363,1764573045451,-150.0,0.00015764,2]
[395257364,1764573045461,-163.70980013,0.00015768,2]
[395257365,1764573045471,-228.29835367,0.00015768,2]
[395257366,1764573045480,-150.0,0.00015773,2]
[395257367,1764573045490,-150.0,0.00015773,2]
[395257368,1764573045499,-150.0,0.00015781,2]
[395257369,1764573045508,-163.70980013,0.00015785,2]
[395257370,1764573045518,-228.29835367,0.00015785,2]
[395257371,1764573045530,-1632.21619088,0.00015787,2]
[395257372,1764573045540,-150.0,0.00015787,2]
[395257373,1764573045550,-150.0,0.00015789,2]
[395257374,1764573045560,-150.0,0.00015794,2]
[395257375,1764573045570,-150.0,0.00015795,2]
[395257376,1764573045580,-150.0,0.00015797,2]
[395257377,1764573045590,-163.70980013,0.00015802,2]
[395257378,1764573045600,-228.29835367,0.00015802,2]
[395257379,1764573045611,-150.0,0.00015805,2]
[395257380,1764573045621,-150.0,0.00015812,2]
[395257381,1764573045631,-150.0,0.00015817,2]
[395257382,1764573045640,-150.0,0.00015817,2]
[395257383,1764573045650,-163.70980013,0.0001582,2]
[395257384,1764573045659,-228.29835367,0.0001582,2]
[395257385,1764573045669,-150.0,0.00015824,2]
[395257386,1764573045679,-150.0,0.00015836,2]
[395257387,1764573045688,-163.70980013,0.00015837,2]
[395257388,1764573045698,-228.29835367,0.00015837,2]
[395257389,1764573045708,-150.0,0.00015837,2]
[395257390,1764573045718,-150.0,0.00015839,2]
[395257391,1764573045729,-150.0,0.00015845,2]
[395257392,1764573045739,-161.57369762,0.0001585,2]
[395257393,1764573045748,-500.0,0.0001585,2]
[395257394,1764573045758,-500.0,0.0001585,2]
[395257395,1764573045767,-160.03289921,0.0001585,2]
[395257396,1764573045777,-500.0,0.0001585,2]
[395257397,1764573045788,-500.0,0.0001585,2]
[395257398,1764573045797,-500.0,0.0001585,2]
[395257399,1764573045806,-506.27683139,0.0001585,2]
[395257400,1764573045816,-500.0,0.0001585,2]
[395257401,1764573045825,-160.09973475,0.0001585,2]
[395257402,1764573045836,-500.0,0.0001585,2]
[395257403,1764573045845,-500.24999643,0.0001585,2]
[395257404,1764573045855,-500.0,0.0001585,2]
[395257405,1764573045865,-500.0,0.0001585,2]
[395257407,1764573045875,-595.94847156,0.0001585,2]
[395257408,1764573045884,-500.0,0.0001585,2]
[395257409,1764573045895,-500.0,0.0001585,2]
[395257410,1764573045905,-179.09525737,0.0001585,2]
[395257411,1764573045915,-500.0,0.0001585,2]
[395257412,1764573045924,-500.0,0.0001585,2]
[395257413,1764573045934,-500.0,0.0001585,2]
[395257414,1764573045943,-500.0,0.0001585,2]
[395257415,1764573045952,-500.0,0.0001585,2]
[395257416,1764573045962,-500.0,0.0001585,2]
[395257417,1764573045972,-500.0,0.0001585,2]
[395257418,1764573045982,-333.57957552,0.0001585,2]
[395257419,1764573045991,-500.0,0.0001585,2]
[395257420,1764573046000,-586.42715679,0.0001585,2]
[395257421,1764573046010,-530.92789341,0.0001585,2]
[395257422,1764573046019,-156.08046811,0.0001585,2]
[395257423,1764573046029,-160.09479154,0.0001585,2]
[395257424,1764573046039,-160.09669624,0.0001585,2]
[395257425,1764573046048,-200.09019976,0.0001585,2]
[395257426,1764573046058,-501.27985406,0.0001585,2]
[395257427,1764573046067,-160.09684565,0.0001585,2]
[395257428,1764573046077,-500.0,0.0001585,2]
[395257429,1764573046087,-306.16890781,0.0001585,2]
[395257430,1764573046096,-500.0,0.0001585,2]
[395257431,1764573046105,-160.09781138,0.0001585,2]
[395257432,1764573046114,-500.0,0.0001585,2]
[395257433,1764573046126,-332.16239915,0.0001585,2]
[395257434,1764573046135,-500.0,0.0001585,2]
[395257435,1764573046145,-162.15790222,0.0001585,2]
[395257436,1764573046156,-206.01551169,0.0001585,2]
[395257437,1764573046166,-219.62013657,0.0001585,2]
[395257438,1764573046176,-500.0,0.0001585,2]
[395257439,1764573046185,-500.0,0.0001585,2]
[395257440,1764573046195,-500.0,0.0001585,2]
[395257441,1764573046205,-569.20900345,0.0001585,2]
[395257442,1764573046215,-500.0,0.0001585,2]
[395257443,1764573046225,-160.09780403,0.0001585,2]
[395257444,1764573046236,-507.99167839,0.0001585,2]
[395257445,1764573046246,-160.18575084,0.0001585,2]
[395257446,1764573046255,-356.06806903,0.0001585,2]
[395257447,1764573046265,-160.09781887,0.0001585,2]
[395257448,1764573046275,-500.0,0.0001585,2]
[395257449,1764573046286,-500.0,0.0001585,2]
[395257450,1764573046295,-500.0,0.0001585,2]
[395257451,1764573046304,-500.0,0.0001585,2]